[Event "Titled Tuesday Blitz July 11 Late 2023"]
[White "Luong Phuong Hanh"]
[Black "Ardila, Oscar Humberto"]
[WhiteFideId "12401013"]
[BlackFideId "4404742"]
[WhiteElo "2446"]
[BlackElo "2275"]
[Result "1-0"]
[Round "8"]
[TimeControl "180+2"]
[Date "2023.07.11"]
[WhiteClock "0:02:19"]
[BlackClock "0:01:46"]
[Board "114"]

1. d4 {[%clk 0:02:58]}  Nf6 {[%clk 0:03:00]} 2. Nf3 {[%clk 0:02:58]}  g6 {[%clk 0:02:59]} 3. g3 {[%clk 0:02:58]}  Bg7 {[%clk 0:03:00]} 4. Bg2 {[%clk 0:02:59]}  O-O {[%clk 0:03:00]} 5. O-O {[%clk 0:02:59]}  d6 {[%clk 0:03:01]} 6. a4 {[%clk 0:02:59]}  Nbd7 {[%clk 0:03:01]} 7. a5 {[%clk 0:02:58]}  a6 {[%clk 0:03:00]} 8. Nc3 {[%clk 0:02:59]}  e5 {[%clk 0:02:59]} 9. dxe5 {[%clk 0:02:59]}  dxe5 {[%clk 0:02:59]} 10. e4 {[%clk 0:02:55]}  Re8 {[%clk 0:02:58]} 11. h3 {[%clk 0:02:53]}  c6 {[%clk 0:02:56]} 12. Qe2 {[%clk 0:02:50]}  Qc7 {[%clk 0:02:56]} 13. Rd1 {[%clk 0:02:50]}  Nc5 {[%clk 0:02:56]} 14. Be3 {[%clk 0:02:51]}  Ne6 {[%clk 0:02:55]} 15. Bb6 {[%clk 0:02:50]}  Qb8 {[%clk 0:02:52]} 16. Na4 {[%clk 0:02:47]}  Nd7 {[%clk 0:02:52]} 17. Qc4 {[%clk 0:02:33]}  Nxb6 {[%clk 0:02:10]} 18. axb6 {[%clk 0:02:32]}  Nd4 {[%clk 0:01:57]} 19. Nc5 {[%clk 0:02:24]}  Be6 {[%clk 0:01:53]} 20. Nxe6 {[%clk 0:02:24]}  Nxe6 {[%clk 0:01:53]} 21. Rd7 {[%clk 0:02:19]}  Qc8 {[%clk 0:01:48]} 22. Rad1 {[%clk 0:02:19]}  Nd4 {[%clk 0:01:48]} 23. Qxf7+ {[%clk 0:02:19]}  Kh8 {[%clk 0:01:46]} 24. Qxg7# {[%clk 0:02:19]} 1-0


[Site "https://www.chess.com"]

[Event "Titled Tuesday Blitz July 11 Late 2023"]
[White "Prieto Aranguren, Alain"]
[Black "Kopacz, Grzegorz"]
[WhiteFideId "2268906"]
[BlackFideId "1109880"]
[WhiteElo "2372"]
[BlackElo "2223"]
[Result "1-0"]
[Round "8"]
[TimeControl "180+2"]
[Date "2023.07.11"]
[WhiteClock "0:02:30"]
[BlackClock "0:02:11"]
[Board "120"]

1. e4 {[%clk 0:03:00]}  c5 {[%clk 0:02:57]} 2. Nf3 {[%clk 0:02:58]}  Nc6 {[%clk 0:02:57]} 3. Bb5 {[%clk 0:02:58]}  g6 {[%clk 0:02:46]} 4. c3 {[%clk 0:02:57]}  Bg7 {[%clk 0:02:43]} 5. O-O {[%clk 0:02:58]}  e6 {[%clk 0:02:31]} 6. d4 {[%clk 0:02:58]}  cxd4 {[%clk 0:02:26]} 7. cxd4 {[%clk 0:02:58]}  Nge7 {[%clk 0:02:27]} 8. d5 {[%clk 0:02:58]}  Ne5 {[%clk 0:02:22]} 9. Nxe5 {[%clk 0:02:54]}  Bxe5 {[%clk 0:02:23]} 10. f4 {[%clk 0:02:54]}  Bd4+ {[%clk 0:02:20]} 11. Qxd4 {[%clk 0:02:50]}  O-O {[%clk 0:02:16]} 12. d6 {[%clk 0:02:35]}  Nc6 {[%clk 0:02:12]} 13. Bxc6 {[%clk 0:02:30]}  dxc6 {[%clk 0:02:11]} 1-0


[Site "https://www.chess.com"]

[Event "Titled Tuesday Blitz July 11 Late 2023"]
[White "Cardenas Carbajal, Nilson"]
[Black "cedchass2006"]
[WhiteFideId "8401128"]
[WhiteElo "2170"]
[BlackElo "2356"]
[Result "1-0"]
[Round "8"]
[TimeControl "180+2"]
[Date "2023.07.11"]
[WhiteClock "0:00:22"]
[BlackClock "0:00:03"]
[Board "123"]

1. e4 {[%clk 0:02:58]}  e5 {[%clk 0:02:59]} 2. Nf3 {[%clk 0:02:55]}  Nc6 {[%clk 0:02:59]} 3. Bc4 {[%clk 0:02:54]}  Bc5 {[%clk 0:02:58]} 4. c3 {[%clk 0:02:53]}  Nf6 {[%clk 0:02:58]} 5. d4 {[%clk 0:02:53]}  exd4 {[%clk 0:02:58]} 6. cxd4 {[%clk 0:02:53]}  Bb4+ {[%clk 0:02:58]} 7. Nc3 {[%clk 0:02:53]}  Nxe4 {[%clk 0:02:56]} 8. O-O {[%clk 0:02:53]}  Bxc3 {[%clk 0:02:55]} 9. d5 {[%clk 0:02:52]}  Bf6 {[%clk 0:02:45]} 10. Re1 {[%clk 0:02:51]}  O-O {[%clk 0:02:22]} 11. Rxe4 {[%clk 0:02:47]}  Ne7 {[%clk 0:02:21]} 12. d6 {[%clk 0:02:40]}  cxd6 {[%clk 0:02:19]} 13. Qxd6 {[%clk 0:02:39]}  Nf5 {[%clk 0:02:04]} 14. Qd5 {[%clk 0:02:39]}  d6 {[%clk 0:02:00]} 15. Bg5 {[%clk 0:02:33]}  Bxg5 {[%clk 0:01:50]} 16. Nxg5 {[%clk 0:02:33]}  Be6 {[%clk 0:01:06]} 17. Nxe6 {[%clk 0:01:51]}  fxe6 {[%clk 0:01:04]} 18. Rxe6 {[%clk 0:01:40]}  Kh8 {[%clk 0:01:01]} 19. Rae1 {[%clk 0:01:37]}  Qb6 {[%clk 0:00:54]} 20. R6e2 {[%clk 0:01:25]}  Nd4 {[%clk 0:00:52]} 21. Rd2 {[%clk 0:01:22]}  Rae8 {[%clk 0:00:46]} 22. Rxe8 {[%clk 0:01:18]}  Rxe8 {[%clk 0:00:38]} 23. Qxd4 {[%clk 0:01:12]}  Re1+ {[%clk 0:00:35]} 24. Bf1 {[%clk 0:01:12]}  Qb5 {[%clk 0:00:20]} 25. Qd3 {[%clk 0:01:12]}  Qa6 {[%clk 0:00:02]} 26. Qxa6 {[%clk 0:01:09]}  bxa6 {[%clk 0:00:02]} 27. Rxd6 {[%clk 0:01:09]}  h6 {[%clk 0:00:03]} 28. Rxa6 {[%clk 0:01:07]}  Rb1 {[%clk 0:00:02]} 29. b3 {[%clk 0:01:06]}  h5 {[%clk 0:00:01]} 30. Rxa7 {[%clk 0:01:06]}  Kh7 {[%clk 0:00:02]} 31. g3 {[%clk 0:01:04]}  Kh6 {[%clk 0:00:03]} 32. Kg2 {[%clk 0:01:04]}  Rb2 {[%clk 0:00:04]} 33. Bc4 {[%clk 0:01:02]}  g6 {[%clk 0:00:03]} 34. Ra6 {[%clk 0:01:00]}  h4 {[%clk 0:00:03]} 35. h3 {[%clk 0:00:59]}  hxg3 {[%clk 0:00:03]} 36. Kxg3 {[%clk 0:00:59]}  Rd2 {[%clk 0:00:03]} 37. a4 {[%clk 0:00:57]}  Rd4 {[%clk 0:00:03]} 38. a5 {[%clk 0:00:55]}  Rd2 {[%clk 0:00:02]} 39. Rb6 {[%clk 0:00:53]}  Kg5 {[%clk 0:00:03]} 40. Rb5+ {[%clk 0:00:52]}  Kf6 {[%clk 0:00:02]} 41. a6 {[%clk 0:00:52]}  Ra2 {[%clk 0:00:02]} 42. Rb7 {[%clk 0:00:52]}  Ke5 {[%clk 0:00:01]} 43. a7 {[%clk 0:00:51]}  Kd4 {[%clk 0:00:02]} 44. Rd7+ {[%clk 0:00:46]}  Kc5 {[%clk 0:00:02]} 45. Bd5 {[%clk 0:00:45]}  Ra3 {[%clk 0:00:03]} 46. Bf3 {[%clk 0:00:35]}  g5 {[%clk 0:00:02]} 47. a8=Q {[%clk 0:00:23]}  Rxa8 {[%clk 0:00:03]} 48. Bxa8 {[%clk 0:00:23]}  g4 {[%clk 0:00:04]} 49. hxg4 {[%clk 0:00:22]}  Kb6 {[%clk 0:00:03]} 50. Be4 {[%clk 0:00:20]}  Kc5 {[%clk 0:00:02]} 51. Rd5+ {[%clk 0:00:20]}  Kb6 {[%clk 0:00:02]} 52. g5 {[%clk 0:00:21]}  Ka7 {[%clk 0:00:02]} 53. g6 {[%clk 0:00:22]}  Kb8 {[%clk 0:00:03]} 54. g7 {[%clk 0:00:22]}  Kb7 {[%clk 0:00:04]} 55. g8=Q {[%clk 0:00:22]}  Kb6 {[%clk 0:00:05]} 56. Qg6+ {[%clk 0:00:22]}  Ka7 {[%clk 0:00:06]} 57. Rd7+ {[%clk 0:00:22]}  Kb8 {[%clk 0:00:03]} 58. Qe8# {[%clk 0:00:22]} 1-0


[Site "https://www.chess.com"]

[Event "Titled Tuesday Blitz July 11 Late 2023"]
[White "The_Straightforward_Rook"]
[Black "Burke, Paul"]
[BlackFideId "2605767"]
[WhiteElo "2315"]
[BlackElo "1918"]
[Result "1-0"]
[Round "8"]
[TimeControl "180+2"]
[Date "2023.07.11"]
[WhiteClock "0:00:56"]
[BlackClock "0:00:00"]
[Board "126"]

1. e4 {[%clk 0:03:00]}  e5 {[%clk 0:02:57]} 2. Nf3 {[%clk 0:03:00]}  Nc6 {[%clk 0:02:56]} 3. Bc4 {[%clk 0:02:59]}  Be7 {[%clk 0:02:56]} 4. d3 {[%clk 0:02:59]}  d6 {[%clk 0:02:55]} 5. a4 {[%clk 0:02:58]}  Nf6 {[%clk 0:02:55]} 6. a5 {[%clk 0:02:57]}  O-O {[%clk 0:02:54]} 7. Nbd2 {[%clk 0:02:56]}  Be6 {[%clk 0:02:54]} 8. c3 {[%clk 0:02:54]}  d5 {[%clk 0:02:53]} 9. exd5 {[%clk 0:02:52]}  Nxd5 {[%clk 0:02:52]} 10. O-O {[%clk 0:02:52]}  Nf4 {[%clk 0:02:51]} 11. a6 {[%clk 0:02:49]}  b6 {[%clk 0:02:33]} 12. Bxe6 {[%clk 0:02:42]}  Nxe6 {[%clk 0:02:26]} 13. Nc4 {[%clk 0:02:42]}  f6 {[%clk 0:02:21]} 14. b4 {[%clk 0:02:30]}  Kh8 {[%clk 0:02:17]} 15. Re1 {[%clk 0:02:28]}  Qd5 {[%clk 0:01:51]} 16. Ne3 {[%clk 0:02:25]}  Qd7 {[%clk 0:01:49]} 17. Qb3 {[%clk 0:02:20]}  Nf4 {[%clk 0:01:42]} 18. d4 {[%clk 0:02:10]}  Nd3 {[%clk 0:01:32]} 19. Rd1 {[%clk 0:02:08]}  Nxc1 {[%clk 0:01:32]} 20. Raxc1 {[%clk 0:02:08]}  exd4 {[%clk 0:01:32]} 21. Nxd4 {[%clk 0:02:08]}  Nxd4 {[%clk 0:01:23]} 22. Rxd4 {[%clk 0:02:09]}  Qc6 {[%clk 0:01:21]} 23. Nd5 {[%clk 0:01:59]}  Bd6 {[%clk 0:01:18]} 24. c4 {[%clk 0:01:42]}  Qe8 {[%clk 0:01:13]} 25. Rh4 {[%clk 0:01:33]}  f5 {[%clk 0:00:54]} 26. Qc3 {[%clk 0:01:25]}  Qe5 {[%clk 0:00:43]} 27. Qxe5 {[%clk 0:01:22]}  Bxe5 {[%clk 0:00:43]} 28. Kf1 {[%clk 0:01:20]}  c6 {[%clk 0:00:41]} 29. Ne3 {[%clk 0:01:18]}  Bf6 {[%clk 0:00:21]} 30. Rh3 {[%clk 0:01:16]}  g6 {[%clk 0:00:20]} 31. Rd1 {[%clk 0:01:04]}  Rad8 {[%clk 0:00:19]} 32. Ke2 {[%clk 0:01:03]}  Rxd1 {[%clk 0:00:19]} 33. Kxd1 {[%clk 0:01:04]}  Rd8+ {[%clk 0:00:19]} 34. Kc2 {[%clk 0:01:05]}  f4 {[%clk 0:00:18]} 35. Ng4 {[%clk 0:01:05]}  Bg7 {[%clk 0:00:17]} 36. Rd3 {[%clk 0:01:05]}  Rxd3 {[%clk 0:00:15]} 37. Kxd3 {[%clk 0:01:05]}  Kg8 {[%clk 0:00:15]} 38. f3 {[%clk 0:01:04]}  Kf7 {[%clk 0:00:14]} 39. b5 {[%clk 0:01:03]}  c5 {[%clk 0:00:14]} 40. Ke4 {[%clk 0:01:03]}  Ke6 {[%clk 0:00:14]} 41. Nf2 {[%clk 0:01:02]}  g5 {[%clk 0:00:11]} 42. h3 {[%clk 0:01:02]}  Bd4 {[%clk 0:00:10]} 43. Nd3 {[%clk 0:00:56]}  Be3 {[%clk 0:00:09]} 44. Ne5 {[%clk 0:00:55]}  Bd4 {[%clk 0:00:08]} 45. Nc6 {[%clk 0:00:55]}  Kd7 {[%clk 0:00:04]} 46. Nxa7 {[%clk 0:00:56]}  Kc7 {[%clk 0:00:00]} 47. Nc6 {[%clk 0:00:56]} 1-0


[Site "https://www.chess.com"]

[Event "Titled Tuesday Blitz July 11 Late 2023"]
[White "Upper, John"]
[Black "Guzman Moneo, Alberto"]
[WhiteFideId "2606437"]
[BlackFideId "2209616"]
[WhiteElo "2005"]
[BlackElo "2384"]
[Result "0-1"]
[Round "8"]
[TimeControl "180+2"]
[Date "2023.07.11"]
[WhiteClock "0:00:16"]
[BlackClock "0:01:43"]
[Board "127"]

1. Nf3 {[%clk 0:02:58]}  f5 {[%clk 0:02:58]} 2. b3 {[%clk 0:02:57]}  Nf6 {[%clk 0:02:58]} 3. Bb2 {[%clk 0:02:57]}  d6 {[%clk 0:02:58]} 4. d4 {[%clk 0:02:56]}  g6 {[%clk 0:02:57]} 5. Nbd2 {[%clk 0:02:55]}  Bg7 {[%clk 0:02:58]} 6. e3 {[%clk 0:02:55]}  O-O {[%clk 0:02:58]} 7. h4 {[%clk 0:02:48]}  h6 {[%clk 0:02:57]} 8. Bc4+ {[%clk 0:02:43]}  e6 {[%clk 0:02:55]} 9. Qe2 {[%clk 0:02:39]}  d5 {[%clk 0:02:49]} 10. Bd3 {[%clk 0:02:39]}  Nc6 {[%clk 0:02:48]} 11. a3 {[%clk 0:02:38]}  Ne4 {[%clk 0:02:46]} 12. O-O-O {[%clk 0:02:31]}  a5 {[%clk 0:02:42]} 13. Rdg1 {[%clk 0:02:25]}  a4 {[%clk 0:02:42]} 14. g4 {[%clk 0:02:12]}  axb3 {[%clk 0:02:40]} 15. cxb3 {[%clk 0:02:13]}  Kh7 {[%clk 0:02:31]} 16. Ne5 {[%clk 0:01:50]}  Nxe5 {[%clk 0:02:28]} 17. dxe5 {[%clk 0:01:50]}  Qe7 {[%clk 0:02:19]} 18. f4 {[%clk 0:01:36]}  Rxa3 {[%clk 0:02:17]} 19. Bxe4 {[%clk 0:01:14]}  fxe4 {[%clk 0:02:13]} 20. g5 {[%clk 0:01:09]}  h5 {[%clk 0:02:12]} 21. Bxa3 {[%clk 0:01:06]}  Qxa3+ {[%clk 0:02:11]} 22. Kb1 {[%clk 0:01:06]}  Bd7 {[%clk 0:02:06]} 23. Kc2 {[%clk 0:00:38]}  Qc5+ {[%clk 0:01:58]} 24. Kb2 {[%clk 0:00:35]}  Bb5 {[%clk 0:01:49]} 25. Qe1 {[%clk 0:00:31]}  Ra8 {[%clk 0:01:48]} 26. Nb1 {[%clk 0:00:29]}  Bd3 {[%clk 0:01:46]} 27. Qc3 {[%clk 0:00:25]}  Qxe3 {[%clk 0:01:45]} 28. Rg2 {[%clk 0:00:16]}  Qxf4 {[%clk 0:01:43]} 0-1


[Site "https://www.chess.com"]

[Event "Titled Tuesday Blitz July 11 Late 2023"]
[White "UgarteCesar"]
[Black "Balla, Tamas-Kristof"]
[BlackFideId "1208497"]
[WhiteElo "2191"]
[BlackElo "2368"]
[Result "0-1"]
[Round "8"]
[TimeControl "180+2"]
[Date "2023.07.11"]
[WhiteClock "0:00:01"]
[BlackClock "0:00:36"]
[Board "128"]

1. c4 {[%clk 0:02:44]}  c5 {[%clk 0:02:59]} 2. Nc3 {[%clk 0:02:42]}  Nc6 {[%clk 0:02:58]} 3. g3 {[%clk 0:02:42]}  g6 {[%clk 0:02:59]} 4. Bg2 {[%clk 0:02:42]}  Bg7 {[%clk 0:02:59]} 5. e3 {[%clk 0:02:43]}  e6 {[%clk 0:02:59]} 6. Nge2 {[%clk 0:02:43]}  Nge7 {[%clk 0:02:59]} 7. O-O {[%clk 0:02:44]}  O-O {[%clk 0:03:00]} 8. d4 {[%clk 0:02:44]}  cxd4 {[%clk 0:03:00]} 9. Nxd4 {[%clk 0:02:45]}  d5 {[%clk 0:03:01]} 10. cxd5 {[%clk 0:02:44]}  Nxd4 {[%clk 0:02:59]} 11. exd4 {[%clk 0:02:42]}  Nxd5 {[%clk 0:02:58]} 12. Nxd5 {[%clk 0:02:39]}  exd5 {[%clk 0:02:59]} 13. Be3 {[%clk 0:02:38]}  Be6 {[%clk 0:02:55]} 14. Qb3 {[%clk 0:02:38]}  Qd7 {[%clk 0:02:53]} 15. Rfc1 {[%clk 0:02:37]}  Rac8 {[%clk 0:02:53]} 16. a4 {[%clk 0:02:30]}  Rfd8 {[%clk 0:02:47]} 17. a5 {[%clk 0:02:30]}  a6 {[%clk 0:02:44]} 18. Qb6 {[%clk 0:02:29]}  Bh3 {[%clk 0:02:18]} 19. Bxh3 {[%clk 0:02:05]}  Qxh3 {[%clk 0:02:18]} 20. Rc5 {[%clk 0:01:55]}  Qd7 {[%clk 0:01:56]} 21. Rac1 {[%clk 0:01:52]}  Rxc5 {[%clk 0:01:56]} 22. Qxc5 {[%clk 0:01:52]}  Bf8 {[%clk 0:01:31]} 23. Qc7 {[%clk 0:01:41]}  Bd6 {[%clk 0:01:22]} 24. Qxd7 {[%clk 0:01:30]}  Rxd7 {[%clk 0:01:23]} 25. Bh6 {[%clk 0:01:25]}  f6 {[%clk 0:01:14]} 26. Rc8+ {[%clk 0:01:23]}  Kf7 {[%clk 0:01:14]} 27. Bd2 {[%clk 0:01:12]}  Ke6 {[%clk 0:01:11]} 28. Kg2 {[%clk 0:01:03]}  Kf5 {[%clk 0:01:05]} 29. f3 {[%clk 0:00:58]}  g5 {[%clk 0:00:59]} 30. h3 {[%clk 0:00:56]}  Rc7 {[%clk 0:00:51]} 31. Rxc7 {[%clk 0:00:35]}  Bxc7 {[%clk 0:00:52]} 32. g4+ {[%clk 0:00:29]}  Ke6 {[%clk 0:00:53]} 33. Kf2 {[%clk 0:00:27]}  Kd6 {[%clk 0:00:51]} 34. Ke2 {[%clk 0:00:26]}  Kc6 {[%clk 0:00:51]} 35. Kd3 {[%clk 0:00:25]}  Kb5 {[%clk 0:00:52]} 36. b4 {[%clk 0:00:18]}  Bd6 {[%clk 0:00:52]} 37. Bc1 {[%clk 0:00:14]}  Bxb4 {[%clk 0:00:52]} 38. f4 {[%clk 0:00:15]}  gxf4 {[%clk 0:00:51]} 39. Bxf4 {[%clk 0:00:15]}  Bxa5 {[%clk 0:00:50]} 40. Bd6 {[%clk 0:00:15]}  Bd8 {[%clk 0:00:50]} 41. Ke3 {[%clk 0:00:15]}  Kc4 {[%clk 0:00:49]} 42. h4 {[%clk 0:00:14]}  b5 {[%clk 0:00:50]} 43. Bc5 {[%clk 0:00:11]}  b4 {[%clk 0:00:50]} 44. Kd2 {[%clk 0:00:11]}  a5 {[%clk 0:00:47]} 45. Kc2 {[%clk 0:00:11]}  a4 {[%clk 0:00:47]} 46. Kb2 {[%clk 0:00:11]}  a3+ {[%clk 0:00:47]} 47. Ka2 {[%clk 0:00:11]}  f5 {[%clk 0:00:39]} 48. gxf5 {[%clk 0:00:11]}  Bxh4 {[%clk 0:00:39]} 49. Bf8 {[%clk 0:00:07]}  Bf6 {[%clk 0:00:38]} 50. Bc5 {[%clk 0:00:06]}  h5 {[%clk 0:00:38]} 51. Kb1 {[%clk 0:00:04]}  Kb3 {[%clk 0:00:36]} 52. Bd6 {[%clk 0:00:01]}  a2+ {[%clk 0:00:36]} 53. Ka1 {[%clk 0:00:01]}  Bxd4# {[%clk 0:00:36]} 0-1


[Site "https://www.chess.com"]

[Event "Titled Tuesday Blitz July 11 Late 2023"]
[White "Fominykh, Maria"]
[Black "Gamboa, Juan Pablo"]
[WhiteFideId "4142411"]
[BlackFideId "105180"]
[WhiteElo "2193"]
[BlackElo "1931"]
[Result "1-0"]
[Round "8"]
[TimeControl "180+2"]
[Date "2023.07.11"]
[WhiteClock "0:00:12"]
[BlackClock "0:00:20"]
[Board "130"]

1. d4 {[%clk 0:03:00]}  e6 {[%clk 0:03:00]} 2. c4 {[%clk 0:02:58]}  d5 {[%clk 0:03:00]} 3. Nc3 {[%clk 0:02:58]}  c5 {[%clk 0:03:01]} 4. cxd5 {[%clk 0:02:57]}  exd5 {[%clk 0:03:01]} 5. Nf3 {[%clk 0:02:57]}  Nc6 {[%clk 0:03:01]} 6. g3 {[%clk 0:02:56]}  Nf6 {[%clk 0:03:02]} 7. Bg2 {[%clk 0:02:57]}  cxd4 {[%clk 0:03:03]} 8. Nxd4 {[%clk 0:02:57]}  Bc5 {[%clk 0:03:04]} 9. Nb3 {[%clk 0:02:42]}  Bb6 {[%clk 0:03:04]} 10. O-O {[%clk 0:02:39]}  d4 {[%clk 0:03:04]} 11. Na4 {[%clk 0:02:29]}  O-O {[%clk 0:03:00]} 12. Nxb6 {[%clk 0:02:21]}  Qxb6 {[%clk 0:02:49]} 13. Bg5 {[%clk 0:02:08]}  Re8 {[%clk 0:02:23]} 14. Bxf6 {[%clk 0:02:05]}  gxf6 {[%clk 0:02:23]} 15. Bxc6 {[%clk 0:01:47]}  bxc6 {[%clk 0:02:23]} 16. Qxd4 {[%clk 0:01:46]}  Qxd4 {[%clk 0:02:18]} 17. Nxd4 {[%clk 0:01:45]}  c5 {[%clk 0:02:19]} 18. Nb3 {[%clk 0:01:42]}  Rxe2 {[%clk 0:02:15]} 19. Nxc5 {[%clk 0:01:35]}  Rxb2 {[%clk 0:02:15]} 20. Rfe1 {[%clk 0:01:25]}  Bh3 {[%clk 0:02:03]} 21. Nd3 {[%clk 0:01:17]}  Rd2 {[%clk 0:01:54]} 22. Nf4 {[%clk 0:01:17]}  Bf5 {[%clk 0:01:50]} 23. a4 {[%clk 0:01:07]}  a5 {[%clk 0:01:35]} 24. Rad1 {[%clk 0:00:50]}  Rxd1 {[%clk 0:01:35]} 25. Rxd1 {[%clk 0:00:49]}  Bc2 {[%clk 0:01:35]} 26. Rd4 {[%clk 0:00:46]}  Rb8 {[%clk 0:01:29]} 27. Nd5 {[%clk 0:00:29]}  Kg7 {[%clk 0:01:25]} 28. Ne3 {[%clk 0:00:22]}  Bb1 {[%clk 0:01:05]} 29. Rg4+ {[%clk 0:00:15]}  Kf8 {[%clk 0:01:03]} 30. Nd5 {[%clk 0:00:14]}  Bf5 {[%clk 0:00:35]} 31. Rf4 {[%clk 0:00:09]}  Bh3 {[%clk 0:00:35]} 32. f3 {[%clk 0:00:09]}  Rb2 {[%clk 0:00:35]} 33. Nxf6 {[%clk 0:00:08]}  Rg2+ {[%clk 0:00:34]} 34. Kh1 {[%clk 0:00:08]}  Ra2 {[%clk 0:00:32]} 35. Kg1 {[%clk 0:00:08]}  Rg2+ {[%clk 0:00:30]} 36. Kf1 {[%clk 0:00:08]}  Rxh2+ {[%clk 0:00:29]} 37. Ke1 {[%clk 0:00:08]}  h6 {[%clk 0:00:25]} 38. Nd5 {[%clk 0:00:07]}  Ra2 {[%clk 0:00:22]} 39. Nc3 {[%clk 0:00:06]}  Ra1+ {[%clk 0:00:22]} 40. Kd2 {[%clk 0:00:05]}  Bd7 {[%clk 0:00:22]} 41. Rd4 {[%clk 0:00:04]}  Ke7 {[%clk 0:00:22]} 42. g4 {[%clk 0:00:04]}  Ke6 {[%clk 0:00:21]} 43. Ke3 {[%clk 0:00:04]}  Ra3 {[%clk 0:00:21]} 44. Kd2 {[%clk 0:00:04]}  Bc6 {[%clk 0:00:18]} 45. f4 {[%clk 0:00:04]}  f5 {[%clk 0:00:17]} 46. g5 {[%clk 0:00:03]}  hxg5 {[%clk 0:00:17]} 47. fxg5 {[%clk 0:00:03]}  f4 {[%clk 0:00:14]} 48. Rxf4 {[%clk 0:00:03]}  Ke5 {[%clk 0:00:14]} 49. Rf6 {[%clk 0:00:03]}  Bxa4 {[%clk 0:00:12]} 50. Rf3 {[%clk 0:00:02]}  Be8 {[%clk 0:00:11]} 51. Re3+ {[%clk 0:00:02]}  Kf5 {[%clk 0:00:12]} 52. Rxe8 {[%clk 0:00:03]}  Kxg5 {[%clk 0:00:12]} 53. Re5+ {[%clk 0:00:03]}  Kf4 {[%clk 0:00:12]} 54. Rb5 {[%clk 0:00:03]}  Ra1 {[%clk 0:00:10]} 55. Kc2 {[%clk 0:00:03]}  a4 {[%clk 0:00:10]} 56. Kb2 {[%clk 0:00:04]}  a3+ {[%clk 0:00:11]} 57. Kxa1 {[%clk 0:00:03]}  Ke3 {[%clk 0:00:11]} 58. Na4 {[%clk 0:00:04]}  Kd2 {[%clk 0:00:12]} 59. Rb3 {[%clk 0:00:05]}  Kc2 {[%clk 0:00:12]} 60. Rxa3 {[%clk 0:00:05]}  Kc1 {[%clk 0:00:12]} 61. Ra2 {[%clk 0:00:06]}  Kd1 {[%clk 0:00:12]} 62. Rb2 {[%clk 0:00:07]}  Kc1 {[%clk 0:00:12]} 63. Ka2 {[%clk 0:00:07]}  Kd1 {[%clk 0:00:13]} 64. Kb3 {[%clk 0:00:08]}  Kc1 {[%clk 0:00:13]} 65. Kc3 {[%clk 0:00:08]}  Kd1 {[%clk 0:00:14]} 66. Kd3 {[%clk 0:00:09]}  Ke1 {[%clk 0:00:14]} 67. Ke3 {[%clk 0:00:08]}  Kd1 {[%clk 0:00:15]} 68. Nc3+ {[%clk 0:00:08]}  Kc1 {[%clk 0:00:15]} 69. Rb1+ {[%clk 0:00:07]}  Kc2 {[%clk 0:00:15]} 70. Ra1 {[%clk 0:00:07]}  Kxc3 {[%clk 0:00:15]} 71. Rd1 {[%clk 0:00:07]}  Kb3 {[%clk 0:00:15]} 72. Rd2 {[%clk 0:00:07]}  Kc3 {[%clk 0:00:16]} 73. Rd3+ {[%clk 0:00:08]}  Kc4 {[%clk 0:00:16]} 74. Ke4 {[%clk 0:00:08]}  Kc5 {[%clk 0:00:16]} 75. Rd4 {[%clk 0:00:09]}  Kc6 {[%clk 0:00:17]} 76. Ke5 {[%clk 0:00:09]}  Kc5 {[%clk 0:00:18]} 77. Ke4 {[%clk 0:00:09]}  Kc6 {[%clk 0:00:18]} 78. Rd5 {[%clk 0:00:09]}  Kb7 {[%clk 0:00:18]} 79. Kd4 {[%clk 0:00:10]}  Kc6 {[%clk 0:00:19]} 80. Kc4 {[%clk 0:00:10]}  Kb7 {[%clk 0:00:20]} 81. Kc5 {[%clk 0:00:11]}  Kc7 {[%clk 0:00:20]} 82. Rd6 {[%clk 0:00:11]}  Kb7 {[%clk 0:00:20]} 83. Rc6 {[%clk 0:00:11]}  Kb8 {[%clk 0:00:20]} 84. Kb6 {[%clk 0:00:11]}  Ka8 {[%clk 0:00:20]} 85. Rc8# {[%clk 0:00:12]} 1-0


[Site "https://www.chess.com"]

[Event "Titled Tuesday Blitz July 11 Late 2023"]
[White "Semenova, Alina"]
[Black "Hartikainen, Jarmo"]
[WhiteFideId "24113875"]
[BlackFideId "503134"]
[WhiteElo "2059"]
[BlackElo "2104"]
[Result "1-0"]
[Round "8"]
[TimeControl "180+2"]
[Date "2023.07.11"]
[WhiteClock "0:00:06"]
[BlackClock "0:00:00"]
[Board "133"]

1. e4 {[%clk 0:02:58]}  c5 {[%clk 0:02:59]} 2. Nf3 {[%clk 0:02:59]}  Nc6 {[%clk 0:02:59]} 3. d4 {[%clk 0:03:00]}  cxd4 {[%clk 0:02:59]} 4. Nxd4 {[%clk 0:03:01]}  Nf6 {[%clk 0:03:00]} 5. Nc3 {[%clk 0:03:00]}  d6 {[%clk 0:03:00]} 6. Bg5 {[%clk 0:02:59]}  Bd7 {[%clk 0:02:58]} 7. Qd2 {[%clk 0:02:59]}  a6 {[%clk 0:02:54]} 8. f3 {[%clk 0:02:58]}  e6 {[%clk 0:02:50]} 9. O-O-O {[%clk 0:02:57]}  Be7 {[%clk 0:02:45]} 10. g4 {[%clk 0:02:55]}  Qc7 {[%clk 0:02:42]} 11. h4 {[%clk 0:02:54]}  b5 {[%clk 0:02:24]} 12. h5 {[%clk 0:02:50]}  h6 {[%clk 0:02:00]} 13. Bh4 {[%clk 0:02:49]}  Ne5 {[%clk 0:01:54]} 14. Be2 {[%clk 0:02:37]}  b4 {[%clk 0:01:45]} 15. Nb1 {[%clk 0:02:29]}  a5 {[%clk 0:00:56]} 16. f4 {[%clk 0:02:20]}  Nexg4 {[%clk 0:00:47]} 17. Bxg4 {[%clk 0:02:20]}  Nxg4 {[%clk 0:00:47]} 18. Bxe7 {[%clk 0:02:20]}  Kxe7 {[%clk 0:00:47]} 19. f5 {[%clk 0:02:12]}  Ne5 {[%clk 0:00:45]} 20. fxe6 {[%clk 0:01:16]}  fxe6 {[%clk 0:00:45]} 21. Qg2 {[%clk 0:01:16]}  Rhg8 {[%clk 0:00:41]} 22. Nd2 {[%clk 0:01:15]}  Rac8 {[%clk 0:00:38]} 23. Kb1 {[%clk 0:00:59]}  Nc4 {[%clk 0:00:23]} 24. Nxc4 {[%clk 0:00:55]}  Qxc4 {[%clk 0:00:23]} 25. Qg3 {[%clk 0:00:45]}  Qc5 {[%clk 0:00:17]} 26. Rhf1 {[%clk 0:00:31]}  a4 {[%clk 0:00:13]} 27. Qh4+ {[%clk 0:00:14]}  Ke8 {[%clk 0:00:10]} 28. Qg4 {[%clk 0:00:10]}  Qe5 {[%clk 0:00:06]} 29. Qg6+ {[%clk 0:00:09]}  Kd8 {[%clk 0:00:00]} 30. Qf7 {[%clk 0:00:06]} 1-0


[Site "https://www.chess.com"]